bitfinex-derivatives/quotes_SOLF0:USTF0_20250518
["timestamp","ask_amount","ask_price","bid_price","bid_amount"]
[1747596533599,5.8903,169.72,169.68,5.8913]
[1747596534002,8.89638922,169.75,169.68,5.8913]
[1747596534501,5.8905,169.71,169.68,5.8913]
[1747596535099,71.09638922,169.72,169.64,5.8926]
[1747596535402,62.2,169.71,169.61,64.2183]
[1747596536607,5.8917,169.68,169.64,5.8926]
[1747596537103,5.8917,169.68,169.61,64.2183]
[1747596538505,5.8917,169.68,169.65,5.8925]
[1747596540499,5.8912,169.69,169.65,5.8925]
[1747596541207,5.8909,169.7,169.61,64.2183]
[1747596541704,5.8909,169.7,169.66,5.8919]
[1747596542099,5.8909,169.7,169.61,64.2183]
[1747596542405,5.8909,169.7,169.66,5.8919]
[1747596542597,5.8911,169.69,169.66,5.8919]
[1747596543203,5.8909,169.7,169.66,5.8919]
[1747596544509,68.0905,169.71,169.61,64.2183]
[1747596544803,68.0705,169.71,169.61,64.2183]
[1747596545004,68.0705,169.71,169.67,5.8916]
[1747596545806,5.8908,169.7,169.67,5.8916]
[1747596546607,5.8908,169.7,169.66,5.892]
[1747596547112,62.18,169.71,169.65,5.8924]
[1747596547706,62.18,169.71,169.66,5.892]
[1747596547897,62.18,169.71,169.61,64.2183]
[1747596548102,5.8909,169.7,169.66,5.8918]
[1747596548406,5.8909,169.7,169.61,64.2183]
[1747596549509,62.2,169.74,169.61,73.11468922]
[1747596549702,62.16,169.75,169.61,73.11468922]
[1747596550008,62.16,169.75,169.64,8.89638922]
[1747596550208,3.9186,169.77,169.65,128.2341]
[1747596550399,5.8887,169.76,169.65,128.2341]
[1747596550711,3.9186,169.77,169.65,128.2341]
[1747596551010,5.8889,169.76,169.72,5.8899]
[1747596551404,5.43924562,169.79,169.71,62.2]
[1747596551597,5.8882,169.78,169.71,62.2]
[1747596552116,5.8883,169.77,169.71,62.2]
[1747596552714,5.8883,169.77,169.73,5.8895]
[1747596553010,5.8883,169.77,169.71,62.2]
[1747596553308,5.8881,169.78,169.74,5.8893]
[1747596556914,5.8881,169.78,169.75,5.889]
[1747596557212,68.0477,169.79,169.75,5.889]
[1747596557511,5.8877,169.79,169.75,5.889]
[1747596558605,5.8874,169.8,169.71,64.2408]
[1747596558809,5.8874,169.8,169.72,2.0132]
[1747596559213,5.8874,169.8,169.73,1.9806]
[1747596559407,5.8874,169.8,169.76,5.8884]
[1747596559814,124.32,169.81,169.71,2.0408]
[1747596560114,124.32,169.81,169.72,124.32]
[1747596560314,62.2,169.81,169.72,124.32]
[1747596560509,62.12,169.8,169.72,124.32]
[1747596560714,5.8877,169.79,169.75,5.8888]
[1747596563514,68.0073,169.8,169.76,5.8885]
[1747596564624,62.12,169.8,169.77,5.8882]
[1747596564918,68.087,169.81,169.77,5.8882]
[1747596565120,62.08,169.82,169.77,5.8882]
[1747596566021,4.007,169.83,169.77,5.8882]
[1747596566224,62.08,169.82,169.77,5.8882]
[1747596566720,62.08,169.82,169.79,5.8876]
[1747596567021,62.08,169.82,169.72,124.32]
[1747596567322,62.08,169.82,169.78,5.8879]
[1747596567721,4.007,169.83,169.78,5.8879]
[1747596567922,66.087,169.83,169.78,5.8879]
[1747596568622,5.887,169.81,169.78,5.8879]
[1747596571027,5.8879,169.79,169.72,62.2]
[1747596571223,66.067,169.83,169.72,124.26]
[1747596571825,5.8882,169.78,169.72,124.26]
[1747596572626,5.8882,169.78,169.75,5.8889]
[1747596573828,62.06,169.79,169.7,62.06]
[1747596574526,62.06,169.79,169.72,5.8899]
[1747596575021,5.8889,169.76,169.72,5.8899]
[1747596576531,5.8891,169.75,169.72,5.8899]
[1747596577827,5.8887,169.76,169.72,5.8899]
[1747596578529,5.889,169.75,169.72,5.8899]
[1747596580328,8.89638922,169.78,169.65,2.0388]
[1747596580631,8.89638922,169.78,169.66,124.1]
[1747596581541,8.89638922,169.77,169.67,62.08]
[1747596581730,62.08,169.76,169.67,62.08]
[1747596582037,5.8898,169.73,169.69,5.8908]
[1747596582427,62.02,169.75,169.69,5.8908]
[1747596582834,62.02,169.75,169.7,5.8907]
[1747596583141,62.02,169.75,169.67,62.08]
[1747596583635,5.8896,169.74,169.67,62.08]
[1747596583831,5.8896,169.74,169.7,5.8905]
[1747596586341,5.8898,169.73,169.7,5.8905]
[1747596586939,5.8894,169.74,169.67,62.08]
[1747596588143,5.8894,169.74,169.7,5.8905]
[1747596590242,5.8897,169.73,169.7,5.8905]
[1747596591545,5.8894,169.74,169.71,5.8903]
[1747596595146,5.8897,169.73,169.7,5.8906]
[1747596595745,5.8902,169.72,169.69,5.891]
[1747596595949,62.02,169.75,169.65,61.96]
[1747596596447,5.8903,169.72,169.69,5.8911]
[1747596598349,5.8903,169.72,169.7,5.8907]
[1747596598652,5.43924562,169.74,169.65,61.96]
[1747596598653,67.39924562,169.74,169.65,61.96]
[1747596598950,73.28884562,169.74,169.7,5.8905]
[1747596599751,5.8897,169.73,169.7,5.8905]
[1747596600249,67.39924562,169.74,169.69,5.891]
[1747596600550,5.8903,169.72,169.69,5.891]
[1747596601357,5.8906,169.71,169.67,5.8917]
[1747596601554,61.96,169.74,169.67,5.8917]
[1747596601861,5.8907,169.71,169.67,5.8917]
[1747596602754,5.8907,169.71,169.68,5.8914]
[1747596603053,61.96,169.74,169.65,61.96]
[1747596604655,5.8901,169.72,169.68,5.8912]
[1747596604952,5.8901,169.72,169.65,61.96]
[1747596605146,61.96,169.74,169.65,61.96]
[1747596605342,5.89,169.73,169.69,5.8908]
[1747596605655,5.89,169.73,169.65,61.96]
[1747596606356,5.89,169.73,169.69,5.8909]
[1747596606554,61.96,169.74,169.65,61.96]
[1747596607057,5.8908,169.7,169.67,5.8917]
[1747596607355,61.96,169.74,169.65,61.96]
[1747596607656,5.8902,169.72,169.65,61.96]
[1747596608056,61.96,169.74,169.65,61.96]
[1747596608957,5.8904,169.71,169.68,5.8914]
[1747596609259,61.96,169.74,169.65,61.96]
[1747596609653,61.96,169.74,169.67,5.8917]
[1747596609857,61.96,169.74,169.65,61.96]
[1747596611058,8.89638922,169.69,169.61,3.8952]
[1747596611261,8.89638922,169.66,169.59,61.98]
[1747596611863,8.89638922,169.66,169.61,5.8936]
[1747596612163,8.89638922,169.66,169.59,61.98]
[1747596612959,5.8926,169.65,169.61,5.8938]
[1747596613661,8.89638922,169.66,169.59,61.98]
[1747596613864,61.92,169.68,169.59,61.98]
[1747596614365,67.8116,169.68,169.64,5.8928]
[1747596614564,67.8116,169.68,169.59,61.98]
[1747596614862,67.8116,169.68,169.64,5.8926]
[1747596615069,67.8116,169.68,169.59,61.98]
[1747596615869,67.8116,169.68,169.64,5.8926]
[1747596616058,61.92,169.68,169.59,61.98]
[1747596617867,67.8115,169.68,169.59,61.98]
[1747596618169,61.92,169.68,169.59,61.98]
[1747596618466,67.8116,169.68,169.64,5.8928]
[1747596618769,61.92,169.68,169.64,5.8928]
[1747596619067,61.92,169.68,169.59,61.98]
[1747596619869,5.8918,169.67,169.63,5.8929]
[1747596622479,5.8922,169.66,169.62,5.8934]
[1747596622663,61.92,169.68,169.62,5.8934]
[1747596622972,67.8116,169.68,169.64,5.8925]
[1747596623368,61.92,169.68,169.58,146.33401698]
[1747596623558,61.92,169.68,169.58,208.31401698]
[1747596623559,70.81638922,169.68,169.58,208.31401698]
[1747596624071,5.8925,169.65,169.61,5.8939]
[1747596625173,5.8929,169.64,169.61,5.8939]
[1747596625971,5.8926,169.65,169.61,5.8939]
[1747596626277,5.8926,169.65,169.62,5.8935]
[1747596626467,70.81638922,169.68,169.62,5.8935]
[1747596626668,70.81638922,169.68,169.58,208.31401698]
[1747596627072,70.81638922,169.68,169.61,5.8937]
[1747596627573,5.8928,169.65,169.61,5.8937]
[1747596627876,70.81638922,169.68,169.61,5.8937]
[1747596628181,5.8928,169.65,169.61,5.8937]
[1747596628474,70.81638922,169.68,169.61,5.8937]
[1747596628677,70.81638922,169.68,169.62,5.8935]
[1747596630980,5.8927,169.65,169.62,5.8935]
[1747596631585,5.8928,169.64,169.61,5.8937]
[1747596631772,70.81638922,169.68,169.58,208.31401698]
[1747596632078,5.8926,169.65,169.58,208.31401698]
[1747596632277,70.81638922,169.68,169.63,5.8931]
[1747596632781,70.81638922,169.68,169.58,208.31401698]
[1747596633378,70.81638922,169.68,169.6,5.8941]
[1747596633579,70.81638922,169.68,169.58,208.31401698]
[1747596633773,8.89638922,169.65,169.58,146.33401698]
[1747596633973,123.74,169.64,169.58,152.22871698]
[1747596634484,5.8943,169.6,169.58,146.33401698]
[1747596634677,5.8943,169.6,169.57,5.8951]
[1747596634976,123.74,169.64,169.57,5.8951]
[1747596635374,5.8941,169.61,169.57,5.8951]
[1747596635576,61.84,169.6,169.53,1.905]
[1747596635881,123.72,169.6,169.49,71.05578279]
[1747596636181,5.8953,169.57,169.53,5.8966]
[1747596636686,132.61638922,169.56,169.49,7.16998279]
[1747596636982,8.89638922,169.52,169.43,14.42170108]
[1747596637284,8.89638922,169.48,169.43,15.60212957]
[1747596637482,123.74,169.47,169.43,15.60212957]
[1747596637686,5.8998,169.44,169.43,15.60212957]
[1747596638281,5.9015,169.39,169.38,18.27550422]
[1747596638484,61.84,169.4,169.38,19.45628117]
[1747596638783,61.84,169.4,169.39,1.18070724]
[1747596641185,61.88,169.42,169.39,1.18070724]
[1747596641888,61.88,169.42,169.4,5.9012]
[1747596642084,61.86,169.43,169.4,1.18063754]
[1747596642382,8.89638922,169.48,169.4,1.18063754]
[1747596642687,123.76,169.47,169.4,1.18063754]
[1747596644698,10.79988922,169.51,169.4,63.10063754]
[1747596644996,123.78,169.5,169.41,3.913]
[1747596645196,123.78,169.5,169.47,5.8986]
[1747596646892,8.89638922,169.48,169.4,63.10063754]
[1747596647092,8.89638922,169.48,169.4,1.18063754]
[1747596647296,8.89638922,169.47,169.4,1.18063754]
[1747596647598,123.78,169.46,169.4,1.18063754]
[1747596647894,5.9012,169.4,169.34,5.9032]
[1747596648097,8.89638922,169.38,169.26,3.8907]
[1747596648290,66.8,169.37,169.26,3.8907]
[1747596648489,66.8,169.37,169.31,5.904]
[1747596648693,66.8,169.37,169.26,3.8907]
[1747596649196,8.89638922,169.35,169.26,3.8907]
[1747596649402,67.24,169.34,169.26,3.8907]
[1747596650197,67.24,169.34,169.29,5.9048]
[1747596650692,67.24,169.34,169.26,3.8907]
[1747596650899,73.1433,169.34,169.27,5.9056]
[1747596651492,5.9038,169.33,169.27,5.9056]
[1747596651788,66.82,169.32,169.24,68.6682]
[1747596651999,5.9043,169.31,169.24,68.6682]
[1747596652197,66.82,169.32,169.24,68.6682]
[1747596653001,66.82,169.32,169.27,5.9055]
[1747596653392,66.82,169.32,169.24,68.6682]
[1747596653792,66.82,169.32,169.27,5.9056]
[1747596654502,66.82,169.32,169.26,5.906]
[1747596654897,66.82,169.32,169.24,68.6682]
[1747596655205,66.82,169.32,169.2,70.8701]
[1747596655500,66.82,169.32,169.2,72.8182]
[1747596655701,5.9046,169.31,169.2,72.8182]
[1747596656000,66.82,169.32,169.2,72.8182]
[1747596656189,72.7239,169.32,169.2,72.8182]
[1747596656394,66.82,169.32,169.2,72.8182]
[1747596656595,66.82,169.32,169.26,5.9058]
[1747596657502,66.82,169.32,169.28,5.9052]
[1747596657895,66.82,169.32,169.2,72.8182]
[1747596658799,66.82,169.32,169.2,141.3182]
[1747596658994,5.9049,169.3,169.2,141.3182]
[1747596659200,68.5,169.29,169.2,141.3182]
[1747596659402,68.5,169.29,169.2,72.8182]
[1747596659705,68.5,169.29,169.21,5.9078]
[1747596659706,5.906,169.26,169.21,5.9078]
[1747596660095,66.86,169.27,169.21,5.9078]
[1747596660296,66.86,169.27,169.19,357.26078363]
[1747596660503,66.86,169.27,169.2,3.9962]
[1747596662107,72.766,169.27,169.22,5.9071]
[1747596662505,66.86,169.27,169.2,3.9962]
[1747596662807,66.86,169.27,169.15,68.8643]
[1747596663009,66.86,169.27,169.15,66.88]
[1747596663302,5.9078,169.21,169.16,5.9094]
[1747596663506,69.42,169.24,169.15,66.88]
[1747596663694,5.908,169.21,169.16,5.9095]
[1747596664005,5.908,169.21,169.15,66.88]
[1747596664211,69.84,169.2,169.0,2.0]
[1747596664403,69.82,169.19,169.04,69.84]
[1747596664706,5.9092,169.17,169.05,70.98308192]
[1747596665106,69.82,169.19,169.05,70.98308192]
[1747596665303,69.82,169.19,169.05,1.18308192]
[1747596665512,18.06806761,169.18,169.05,1.18308192]
[1747596665902,18.06806761,169.18,169.04,69.86]
[1747596666512,3.7331,169.18,169.05,70.44]
[1747596666702,140.3,169.17,169.05,70.44]
[1747596666901,146.2093,169.17,169.05,70.44]
[1747596667303,146.2093,169.17,169.11,5.911]
[1747596667505,146.2093,169.17,169.05,70.44]
[1747596668011,146.2093,169.17,169.11,5.911]
[1747596668211,140.3,169.17,169.05,70.44]
[1747596668412,70.28,169.19,169.05,70.44]
[1747596668710,70.28,169.19,169.14,5.91]
[1747596668913,76.1885,169.19,169.14,5.91]
[1747596670012,76.1885,169.19,169.15,5.9098]
[1747596670212,70.28,169.19,169.15,5.9098]
[1747596671915,70.28,169.19,169.09,69.88]
[1747596672313,8.9733798,169.16,169.03,5.6737]
[1747596672513,5.9105,169.14,169.03,5.6737]
[1747596672814,71.26,169.13,169.03,5.6737]
[1747596673116,5.9109,169.12,169.06,5.913]
[1747596673316,5.9109,169.12,169.03,5.6737]
[1747596673614,5.9113,169.11,169.07,5.9126]
[1747596673814,69.9,169.1,168.95,69.9]
[1747596674016,69.9,169.1,168.96,5.7601]
[1747596674216,75.8119,169.1,168.96,5.7601]
[1747596674514,75.8119,169.1,169.0,143.74]
[1747596674515,69.9,169.1,169.0,143.74]
[1747596674715,69.9,169.1,169.06,5.913]
[1747596674918,69.9,169.1,169.0,143.74]
[1747596675209,69.9,169.12,169.0,143.74]
[1747596675813,69.9,169.12,169.02,5.9143]
[1747596676216,14.36803642,169.1,169.0,2.0]
[1747596676418,3.9385,169.09,169.0,2.0]
[1747596676617,71.9,169.08,169.0,2.0]
[1747596676812,69.9,169.07,169.0,2.0]
[1747596677318,5.9147,169.01,169.0,2.0]
[1747596677513,77.8347,169.01,169.0,2.0]
[1747596678116,71.92,169.01,169.0,2.0]
[1747596680118,77.84,169.01,168.94,5.9171]
[1747596680419,14.36803642,168.95,168.79,72.72]
[1747596680619,14.36803642,168.95,168.75,362.20975091]
[1747596680620,14.41661933,168.9,168.8,1.18483412]
[1747596680916,169.9335,168.89,168.8,1.18483412]
[1747596681119,169.9335,168.89,168.75,2.461e-05]
[1747596681320,14.4261872,168.83,168.75,2.461e-05]
[1747596681619,118.18,168.82,168.75,2.461e-05]
[1747596682011,132.5,168.81,168.75,2.461e-05]
[1747596682213,1.8791,168.8,168.75,2.461e-05]
[1747596682420,5.9233,168.77,168.75,2.461e-05]
[1747596682920,11.8433,168.77,168.75,2.461e-05]
[1747596683123,5.9248,168.73,168.6,10.38915556]
[1747596683319,148.2648,168.73,168.6,10.38915556]
[1747596683515,14.43175316,168.72,168.6,10.38915556]
[1747596683721,14.43175316,168.68,168.6,10.38915556]
[1747596683916,282.26,168.73,168.6,10.38915556]
[1747596684315,5.39115285,168.72,168.51,10.80058133]
[1747596684622,5.39115285,168.72,168.51,25.23233449]
[1747596684822,14.43175316,168.7,168.51,10.80058133]
[1747596685027,1.8638,168.69,168.51,10.80058133]
[1747596685323,5.9266,168.68,168.51,10.80058133]
[1747596685516,1.8638,168.69,168.51,10.80058133]
[1747596685920,1.8638,168.69,168.52,5.9039]
[1747596686223,1.8638,168.69,168.52,3.8565]
[1747596686419,1.8638,168.69,168.52,5.7457]
[1747596687123,1.8638,168.69,168.52,3.8565]
[1747596687320,5.9281,168.63,168.51,10.80058133]
[1747596687521,14.43175316,168.65,168.51,10.80058133]
[1747596687722,1.8638,168.69,168.47,1.8892]
[1747596688028,16.29555316,168.69,168.47,1.8892]
[1747596688421,7.7899,168.69,168.47,1.8892]
[1747596688623,1.8638,168.69,168.47,1.8892]
[1747596689027,1.8638,168.69,168.59,5.9294]
[1747596689233,16.29555316,168.69,168.48,14.43175316]
[1747596689430,1.8638,168.69,168.49,1.8796]
[1747596689827,14.43175316,168.67,168.49,1.8796]
[1747596690031,14.43175316,168.66,168.35,14.43175316]
[1747596690228,14.43175316,168.59,168.4,3.7659]
[1747596690429,8.7719,168.58,168.4,3.7659]
[1747596690734,14.43175316,168.56,168.42,5.9352]
[1747596690934,14.43175316,168.56,168.4,3.7659]
[1747596691428,8.7719,168.58,168.4,3.7659]
[1747596691623,14.7019,168.58,168.47,5.9334]
[1747596692121,14.7019,168.58,168.4,3.7659]
[1747596692122,5.932,168.52,168.41,5.9355]
[1747596692426,23.50798906,168.57,168.22,23.50798906]
[1747596692625,3.2666,168.51,168.23,1.03323882]
[1747596692927,3.2666,168.51,168.22,27.40478906]
[1747596692928,512.0,168.5,168.22,27.40478906]
[1747596693137,23.50798906,168.44,168.22,3.8968]
[1747596693339,5.9366,168.39,168.22,3.8968]
[1747596693630,8.7018,168.43,168.25,23.50798906]
[1747596693827,1.8618,168.43,168.25,23.50798906]
[1747596694027,1.8618,168.43,168.26,1.8998]
[1747596694229,6.8,168.46,168.26,1.8998]
[1747596694424,6.8,168.46,168.36,9.92752461]
[1747596694635,7.8218,168.49,168.36,3.99022461]
[1747596694832,1.8618,168.49,168.36,3.99022461]
[1747596695430,23.50798906,168.46,168.36,3.99022461]
[1747596695631,23.50798906,168.45,168.36,3.99022461]
[1747596695936,23.50798906,168.44,168.36,3.99022461]
[1747596696130,1.8618,168.49,168.36,3.99022461]
[1747596696738,1.03382202,168.48,168.36,3.99022461]
[1747596697134,512.0,168.5,168.39,5.9364]
[1747596697333,512.0,168.5,168.37,5.7069]
[1747596697524,1.9362,168.55,168.37,5.7069]
[1747596697736,7.8672,168.55,168.37,5.7069]
[1747596697929,1.9362,168.55,168.36,3.99022461]
[1747596698131,23.50798906,168.48,168.36,3.99022461]
[1747596698335,23.50798906,168.39,168.21,2.0216]
[1747596699137,23.50798906,168.42,168.21,2.0216]
[1747596699529,23.50798906,168.4,168.21,2.0216]
[1747596699733,5.9391,168.32,168.21,2.0216]
[1747596699941,23.50798906,168.4,168.21,2.0216]
[1747596700234,5.938,168.35,168.25,5.9413]
[1747596700438,1.03452889,168.39,168.21,2.0216]
[1747596700637,512.6,168.47,168.21,2.0216]
[1747596701045,23.50798906,168.42,168.21,2.0216]
[1747596701237,512.6,168.47,168.21,2.0216]
[1747596701542,5.9376,168.36,168.21,2.0216]
[1747596701929,512.6,168.47,168.27,5.9406]
[1747596702133,23.50798906,168.42,168.21,2.0216]
[1747596702333,23.50798906,168.34,168.21,2.0216]
[1747596702639,512.78,168.35,167.99,512.78]
[1747596702847,512.78,168.35,168.08,3.8437]
[1747596703051,5.9419,168.24,168.08,3.8437]
[1747596703433,512.78,168.35,168.15,5.9448]
[1747596703735,512.78,168.35,168.08,3.8437]
[1747596703936,5.9411,168.26,168.14,5.945]
[1747596704138,512.78,168.35,168.08,3.8437]
[1747596704439,512.78,168.35,168.15,23.50798906]
[1747596704632,512.78,168.35,168.16,1.859]
[1747596704839,3.2034,168.41,168.19,23.50798906]
[1747596705036,5.9371,168.38,168.2,3.9041]
[1747596705242,3.2034,168.41,168.2,3.9041]
[1747596705547,1.8803,168.41,168.2,3.9041]
[1747596705744,1.8803,168.41,168.21,23.50798906]
[1747596706046,1.8803,168.41,168.2,27.41208906]
[1747596706249,1.8803,168.41,168.2,3.9041]
[1747596706747,5.9375,168.37,168.2,3.9041]
[1747596707147,1.8803,168.41,168.2,3.9041]
[1747596707441,23.50798906,168.38,168.2,3.9041]
[1747596707638,23.50798906,168.37,168.2,3.9041]
[1747596708243,1.8803,168.41,168.2,3.9041]
[1747596708438,23.50798906,168.38,168.24,5.9416]
[1747596708750,23.50798906,168.4,168.2,3.9041]
[1747596708951,5.9383,168.34,168.23,5.9421]
[1747596709151,24.69570804,168.39,168.2,3.9041]
[1747596709352,24.69570804,168.39,168.2,1.8702]
[1747596709739,1.18771898,168.39,168.2,1.8702]
[1747596710139,7.12451898,168.39,168.3,5.9396]
[1747596710454,1.18771898,168.39,168.23,23.50798906]
[1747596710748,1.18771898,168.39,168.36,5.9372]
[1747596710945,1.18771898,168.39,168.31,23.50798906]
[1747596711248,1.18771898,168.39,168.37,5.9371]
[1747596711445,5.9332,168.49,168.32,5.8647]
[1747596711646,1.18708452,168.48,168.32,5.8647]
[1747596711845,1.18708452,168.48,168.32,29.37268906]
[1747596712953,5.9338,168.47,168.37,5.937]
[1747596713150,5.9338,168.47,168.32,29.37268906]
[1747596713450,1.18722545,168.46,168.32,29.37268906]
[1747596713653,1.18722545,168.46,168.32,5.8647]
[1747596713848,1.18722545,168.46,168.36,5.9375]
[1747596714048,1.18722545,168.46,168.32,5.8647]
[1747596715551,23.54054238,168.43,168.32,1.9763]
[1747596715749,23.54054238,168.39,168.24,1.9901]
[1747596715949,23.54054238,168.39,168.25,1.9235]
[1747596716259,1.18722545,168.46,168.25,1.9235]
[1747596716451,23.54054238,168.44,168.25,1.9235]
[1747596716649,23.54054238,168.4,168.26,1.9756]
[1747596716955,1.18743691,168.43,168.26,1.9756]
[1747596717655,23.54054238,168.41,168.26,1.9756]
[1747596718954,5.9376,168.36,168.26,1.9756]
[1747596719147,23.54054238,168.41,168.26,1.9756]
[1747596719453,5.9374,168.37,168.28,5.9403]
[1747596719657,536.48054238,168.42,168.26,1.9756]
[1747596720153,5.9369,168.38,168.3,5.9396]
[1747596720355,536.48054238,168.42,168.26,1.9756]
[1747596720655,5.9383,168.34,168.26,7.9164]
[1747596720958,536.48054238,168.42,168.26,1.9756]
[1747596722360,512.94,168.42,168.26,1.9756]
[1747596722654,536.48054238,168.42,168.26,1.9756]
[1747596722853,23.54054238,168.37,168.26,1.9756]
[1747596723251,5.9386,168.34,168.26,1.9756]
[1747596723454,23.54054238,168.39,168.26,1.9756]
[1747596723654,3.8201,168.41,168.26,1.9756]
[1747596723862,512.94,168.42,168.26,1.9756]
[1747596724156,1.18743691,168.43,168.27,23.54337753]
[1747596724755,1.18743691,168.43,168.26,1.9756]
[1747596725759,5.27389205,168.42,168.26,1.9756]
[1747596726354,23.55739894,168.39,168.25,1.9235]
[1747596726552,23.55739894,168.39,168.25,3.9493]
[1747596726752,28.83129099,168.42,168.25,3.9493]
[1747596727058,5.27389205,168.42,168.25,3.9493]
[1747596727254,28.82558182,168.41,168.25,3.9493]
[1747596727456,23.55168977,168.37,168.25,3.9493]
[1747596727652,23.55168977,168.37,168.25,9.8907]
[1747596728051,23.55168977,168.37,168.25,1.9235]
[1747596728554,3.9836,168.37,168.25,1.9235]
[1747596728755,5.43924562,168.3,168.25,1.9235]
[1747596729161,5.43924562,168.3,168.24,1.9901]
[1747596730061,5.43924562,168.3,168.25,1.9696]
[1747596730263,5.43924562,168.3,168.26,2.0195]
[1747596730453,5.27389205,168.29,168.26,2.0195]
[1747596731165,2.17659205,168.29,168.28,5.9404]
[1747596731357,5.43924562,168.3,168.26,2.0195]
[1747596731852,5.43924562,168.3,168.24,1.9901]
[1747596732058,29.0239785,168.33,168.2,2.0157]
[1747596732365,25.51588505,168.32,168.2,2.0157]
[1747596733065,5.43924562,168.33,168.2,2.0157]
[1747596733664,5.43924562,168.33,168.31,5.9392]
[1747596733866,1.9268,168.41,168.23,23.55436563]
[1747596734065,1.9268,168.41,168.22,23.55568558]
[1747596734268,5.9373,168.37,168.3,5.9394]
[1747596734460,1.9268,168.41,168.22,23.55568558]
[1747596734967,5.9365,168.39,168.32,5.9387]
[1747596735154,5.9365,168.39,168.22,23.55568558]
[1747596735155,1.9268,168.41,168.22,23.55568558]
[1747596735560,5.9371,168.38,168.31,5.939]
[1747596735761,1.9268,168.41,168.22,23.55568558]
[1747596736167,5.9366,168.39,168.22,23.55568558]
[1747596736664,1.9268,168.41,168.22,23.55568558]
[1747596736865,513.26,168.47,168.26,23.55568558]
[1747596737069,1.9661,168.46,168.27,2.0047]
[1747596737267,1.9661,168.46,168.3,23.55568558]
[1747596737468,1.9661,168.46,168.31,3.957]
[1747596737971,513.26,168.47,168.31,3.957]
[1747596738162,5.9876,168.55,168.31,3.957]
[1747596738362,5.9327,168.5,168.42,5.9354]
[1747596738766,5.9876,168.55,168.31,3.957]
[1747596738961,23.55568558,168.5,168.31,3.957]
[1747596739470,23.55568558,168.46,168.34,5.938]
[1747596739666,2.0219,168.45,168.31,3.957]
[1747596741267,7.41361744,168.45,168.31,3.957]
[1747596741969,23.56418084,168.4,168.31,2.0413]
[1747596742374,3.8547,168.44,168.31,2.0413]
[1747596742668,23.55652156,168.39,168.27,2.0047]
[1747596742870,23.57559858,168.37,168.21,2.0514]
[1747596743067,1.8594,168.36,168.21,2.0514]
[1747596743868,23.57559858,168.29,168.07,513.08]
[1747596744173,25.56823697,168.28,168.06,23.60093697]
[1747596744371,2.0368,168.27,168.06,23.60093697]
[1747596744778,7.9775,168.27,168.1,23.60093697]
[1747596744964,2.0368,168.27,168.1,513.08]
[1747596745169,2.0368,168.27,168.12,23.60093697]
[1747596745363,5.39171744,168.32,168.16,23.60093697]
[1747596745572,5.39171744,168.32,168.17,3.877]
[1747596745876,5.39171744,168.32,168.26,5.9411]
[1747596746070,5.39171744,168.32,168.2,23.60093697]
[1747596746271,5.39171744,168.32,168.11,23.57776234]
[1747596746568,5.39171744,168.32,168.14,3.9042]
[1747596746967,5.94,168.3,168.14,3.9042]
[1747596747166,5.39171744,168.32,168.14,3.9042]
[1747596747573,5.9401,168.29,168.14,3.9042]
[1747596747768,5.39171744,168.32,168.14,3.9042]
[1747596747968,4.96941349,168.31,168.14,3.9042]
[1747596748668,4.96941349,168.31,168.15,23.57776234]
[1747596749375,4.96941349,168.31,168.14,27.48196234]
[1747596749677,4.96941349,168.3,168.14,27.48196234]
[1747596749871,5.9402,168.29,168.14,27.48196234]